fUSD/lending_fUSD_20251118
["ID","MTS","AMOUNT","RATE_DAILY","PERIOD"]
[394325898,1763453602880,192.2794409,0.00016321,2]
[394325899,1763453614967,299.99,0.00016448,4]
[394325900,1763453620072,500.0,0.00016321,2]
[394325901,1763453658098,1000.0,0.00016222,2]
[394325902,1763453659287,158.0,0.00041686,30]
[394325903,1763453672160,280.64799384,0.00016222,2]
[394325904,1763453677161,280.64799384,0.00016297,2]
[394325905,1763453701737,1200.0,0.00016321,2]
[394325906,1763453701920,300.0,0.00016321,2]
[394325907,1763453712610,404.07203317,0.00016321,2]
[394325908,1763453722974,-89700.0,0.00016322,2]
[394325909,1763453723871,61.92625476,0.00016322,2]
[394325910,1763453723901,10000.01,0.00016322,2]
[394325911,1763453723928,10000.01,0.00016322,2]
[394325912,1763453723955,10000.01,0.00016322,2]
[394325913,1763453723983,10000.01,0.00016322,2]
[394325914,1763453724009,10000.01,0.00016322,2]
[394325915,1763453724036,10000.01,0.00016322,2]
[394325916,1763453724064,10000.01,0.00016322,2]
[394325917,1763453724090,10000.01,0.00016322,2]
[394325918,1763453724117,10000.01,0.00016322,2]
[394325919,1763453737746,-2751.0,0.00015783,2]
[394325920,1763453740766,-500.0,0.00016321,2]
[394325921,1763453740804,-500.0,0.00016321,2]
[394325922,1763453740837,-500.0,0.00016321,2]
[394325923,1763453740876,-500.0,0.00016321,2]
[394325924,1763453740914,-500.0,0.00016321,2]
[394325925,1763453740956,-500.0,0.00016321,2]
[394325926,1763453740994,-500.0,0.00016321,2]
[394325927,1763453741035,-500.0,0.00016321,2]
[394325928,1763453741074,-406.7529595,0.00016321,2]
[394325929,1763453741111,-500.0,0.00016321,2]
[394325930,1763453741227,-500.0,0.00016321,2]
[394325931,1763453741267,-500.0,0.00016321,2]
[394325932,1763453741795,-2684.514081,0.00016322,2]
[394325933,1763453741825,-10000.01,0.00016322,2]
[394325934,1763453741950,-10000.01,0.00016322,2]
[394325935,1763453742067,-10000.01,0.00016322,2]
[394325936,1763453743773,-10000.01,0.00016322,2]
[394325937,1763453743905,-10000.01,0.00016322,2]
[394325938,1763453744233,-10000.01,0.00016322,2]
[394325939,1763453744255,-10000.01,0.00016322,2]
[394325940,1763453744348,-10000.01,0.00016322,2]
[394325941,1763453744520,-10000.01,0.00016322,2]
[394325942,1763453746939,-10000.01,0.00016322,2]
[394325943,1763453747679,-10000.01,0.00016322,2]
[394325944,1763453747823,-10000.01,0.00016322,2]
[394325945,1763453755863,-10000.01,0.00016322,2]
[394325946,1763453756016,-10000.01,0.00016322,2]
[394325947,1763453756154,-10000.01,0.00016322,2]
[394325948,1763453756299,-10000.01,0.00016322,2]
[394325949,1763453756330,400.0,0.000165,6]
[394325950,1763453757397,-10000.01,0.00016322,2]
[394325951,1763453757579,-10000.01,0.00016322,2]
[394325952,1763453767461,1455854.29,0.00041686,90]
[394325953,1763453776943,-500.0,0.00016222,2]
[394325954,1763453776978,-300.0,0.00016321,2]
[394325955,1763453777013,-267.14409115,0.00016321,2]
[394325956,1763453777054,-500.0,0.00016321,2]
[394325957,1763453777095,-500.0,0.00016321,2]
[394325958,1763453777135,-500.0,0.00016321,2]
[394325959,1763453777176,-500.0,0.00016321,2]
[394325960,1763453777216,-500.0,0.00016321,2]
[394325961,1763453777258,-500.0,0.00016321,2]
[394325962,1763453777298,-500.0,0.00016321,2]
[394325963,1763453777339,-365.7218177,0.00016321,2]
[394325964,1763453777515,-134.2781823,0.00016321,2]
[394325965,1763453777555,-500.0,0.00016321,2]
[394325966,1763453777596,-500.0,0.00016321,2]
[394325967,1763453777636,-500.0,0.00016321,2]
[394325968,1763453777678,-376.47643923,0.00016321,2]
[394325969,1763453777718,-500.0,0.00016321,2]
[394325970,1763453777762,-500.0,0.00016321,2]
[394325971,1763453777802,-500.0,0.00016321,2]
[394325972,1763453777841,-500.0,0.00016321,2]
[394325973,1763453777881,-500.0,0.00016321,2]
[394325974,1763453777923,-478.50075694,0.00016321,2]
[394325975,1763453778026,-21.49924306,0.00016321,2]
[394325976,1763453778072,-500.0,0.00016321,2]
[394325977,1763453778116,-500.0,0.00016321,2]
[394325978,1763453778160,-500.0,0.00016321,2]
[394325979,1763453778202,-500.0,0.00016321,2]
[394325980,1763453778243,-500.0,0.00016321,2]
[394325981,1763453778283,-500.0,0.00016321,2]
[394325982,1763453778323,-500.0,0.00016321,2]
[394325983,1763453778357,-500.0,0.00016321,2]
[394325984,1763453778560,-628.43818476,0.00016321,2]
[394325985,1763453779166,-155.77742536,0.00016322,2]
[394325986,1763453779193,-700.13514436,0.00016322,2]
[394325987,1763453779216,-10000.01,0.00016322,2]
[394325988,1763453785073,159.0,0.00041686,30]
[394325989,1763453789193,-2830.0992,0.00016222,2]
[394325990,1763453789239,-500.0,0.00016321,2]
[394325991,1763453789283,-500.0,0.00016321,2]
[394325992,1763453789321,-232.85590885,0.00016321,2]
[394325993,1763453789367,-500.0,0.00016321,2]
[394325994,1763453789409,-374.0997823,0.00016321,2]
[394325995,1763453789574,-125.9002177,0.00016321,2]
[394325996,1763453789638,-500.0,0.00016321,2]
[394325997,1763453789680,-500.0,0.00016321,2]
[394325998,1763453789722,-500.0,0.00016321,2]
[394325999,1763453789769,-500.0,0.00016321,2]
[394326000,1763453789813,-500.0,0.00016321,2]
[394326001,1763453789853,-500.0,0.00016321,2]
[394326002,1763453789901,-500.0,0.00016321,2]
[394326003,1763453789942,-500.0,0.00016321,2]
[394326004,1763453789983,-378.1752715,0.00016321,2]
[394326005,1763453790024,-500.0,0.00016321,2]
[394326006,1763453790084,-500.0,0.00016321,2]
[394326007,1763453790126,-500.0,0.00016321,2]
[394326008,1763453790168,-500.0,0.00016321,2]
[394326009,1763453790570,-243.659457,0.00016322,2]
[394326010,1763453790589,-7000.01,0.00016322,2]
[394326011,1763453790624,-10000.01,0.00016322,2]
[394326012,1763453790647,-2284.59850752,0.00016322,2]
[394326013,1763453790656,-533.86223818,0.00016322,2]
[394326014,1763453799858,1047.89228849,0.00016322,2]
[394326015,1763453812542,237.439822,0.0001624,2]
[394326016,1763453818378,416.54025,0.00016222,2]
[394326017,1763453828128,1000.0,0.00016222,2]
[394326018,1763453841231,411.57395041,0.00016222,2]
[394326019,1763453846819,2500.0,0.00016222,2]
[394326020,1763453854494,852.1074667,0.00016316,2]
[394326021,1763453858656,1161.8232,0.00016222,2]
[394326022,1763453862222,1000.0,0.00016,2]
[394326023,1763453866139,1200.0,0.00016321,2]
[394326024,1763453867425,172.6330224,0.00015773,2]
[394326025,1763453867452,303.0669776,0.00015773,2]
[394326026,1763453880077,262.62356826,0.00016321,2]
[394326027,1763453882419,300.0,0.00016321,2]
[394326028,1763453919407,370.75389093,0.00016316,2]
[394326029,1763453953793,-700.0,0.000166,6]
[394326030,1763453953828,-900.0,0.000166,6]
[394326031,1763453953859,-1000.0,0.000167,6]
[394326032,1763453953889,-1400.0,0.000167,6]
[394326033,1763453953921,-1300.0,0.000168,6]
[394326034,1763453953950,-1900.0,0.000168,6]
[394326035,1763453953986,-200.0,0.000169,6]
[394326036,1763453954016,-851.0,0.000169,6]
[394326037,1763454001368,300.0,0.00016321,2]
[394326038,1763454001416,1200.0,0.00016321,2]
[394326039,1763454001456,300.0,0.00016321,2]
[394326040,1763454001741,300.0,0.00016321,2]
[394326041,1763454007145,999.0,0.00015753,3]
[394326042,1763454038150,-1549.0,0.000169,6]
[394326043,1763454038180,-173.79864239,0.00016999,5]
[394326044,1763454061749,300.0,0.00016321,2]
[394326045,1763454061907,300.0,0.00016321,2]
[394326046,1763454068146,419.26869471,0.0001628,2]
[394326047,1763454086714,163.0,0.00041685,30]
[394326048,1763454129736,222.2989347,0.00015912,2]
[394326049,1763454130622,877.15026966,0.00016086,2]
[394326050,1763454165995,1200.0,0.00016321,2]
[394326051,1763454181825,300.0,0.00016321,2]
[394326052,1763454193509,-3356.0,0.00016322,2]
[394326053,1763454195010,402.01785,0.0001632,2]
[394326054,1763454195076,402.01786,0.000163,2]
[394326055,1763454195133,402.01786,0.0001632,2]
[394326056,1763454212506,299.99,0.00016421,4]
[394326057,1763454225115,839.79409414,0.00016224,2]
[394326058,1763454225141,208.68788697,0.00016224,2]
[394326059,1763454231677,163.0,0.00041685,30]
[394326060,1763454241579,300.0,0.00016321,2]
[394326061,1763454242171,300.0,0.00016321,2]
[394326062,1763454258423,2649.0,0.00016133,2]
[394326063,1763454264246,2649.0,0.00016265,2]
[394326064,1763454283410,3893.32211303,0.00015713,2]
[394326065,1763454283438,7071.53788697,0.00015713,2]
[394326066,1763454301701,1200.0,0.00016321,2]
[394326067,1763454301739,300.0,0.00016321,2]
[394326068,1763454302148,300.0,0.00016321,2]
[394326069,1763454304017,1128.47211303,0.00016222,2]
[394326070,1763454304057,10000.01,0.00016222,2]
[394326071,1763454304096,10000.01,0.00016222,2]
[394326072,1763454304131,10000.01,0.00016222,2]
[394326073,1763454304411,10000.01,0.00016222,2]
[394326074,1763454304445,10000.01,0.00016222,2]
[394326075,1763454304480,10000.01,0.00016222,2]
[394326076,1763454304522,10000.01,0.00016222,2]
[394326077,1763454304555,10000.01,0.00016222,2]
[394326078,1763454304590,10000.01,0.00016222,2]
[394326079,1763454305215,150.0,0.00015288,2]
[394326080,1763454307184,302.0,0.00041684,90]
[394326081,1763454307512,74461.3458226,0.00014,2]
[394326082,1763454308607,150.0,0.00015288,2]
[394326083,1763454308829,150.0,0.00015288,2]
[394326084,1763454312903,150.0,0.00015288,2]
[394326085,1763454313520,-10000.01,0.00016222,2]
[394326086,1763454313672,-10000.01,0.00016222,2]
[394326087,1763454313811,-10000.01,0.00016222,2]
[394326088,1763454313947,-10000.01,0.00016222,2]
[394326089,1763454314097,-10000.01,0.00016222,2]
[394326090,1763454314259,-10000.01,0.00016222,2]
[394326091,1763454314970,150.0,0.00015288,2]
[394326092,1763454315646,150.0,0.00015288,2]
[394326093,1763454315830,-10000.01,0.00016222,2]
[394326094,1763454316184,-10000.01,0.00016222,2]
[394326095,1763454316432,-10000.01,0.00016222,2]
[394326096,1763454316579,-10000.01,0.00016222,2]
[394326097,1763454321983,-10000.01,0.00016222,2]
[394326098,1763454322244,-10000.01,0.00016222,2]
[394326099,1763454322623,-10000.01,0.00016222,2]
[394326100,1763454322669,-10000.01,0.00016222,2]
[394326101,1763454322871,-10000.01,0.00016222,2]
[394326102,1763454327855,-10000.01,0.00016222,2]
[394326103,1763454327987,-10000.01,0.00016222,2]
[394326104,1763454328117,-10000.01,0.00016222,2]
[394326105,1763454328252,-10000.01,0.00016222,2]
[394326106,1763454328379,-10000.01,0.00016222,2]
[394326107,1763454328620,150.0,0.00015288,2]
[394326108,1763454337018,-10000.01,0.00016222,2]
[394326109,1763454337251,-10000.01,0.00016222,2]
[394326110,1763454337490,-10000.01,0.00016222,2]
[394326111,1763454345942,-4611.64598399,0.00016199,2]
[394326112,1763454345988,-776.71803202,0.00016222,2]
[394326113,1763454346104,-10000.01,0.00016222,2]
[394326114,1763454346245,-10000.01,0.00016222,2]
[394326115,1763454346384,-10000.01,0.00016222,2]
[394326116,1763454346507,-10000.01,0.00016222,2]
[394326117,1763454364233,1287.13070868,0.00011,2]
[394326120,1763454368411,1057.607539,7.945e-05,2]
[394326121,1763454368468,166.0,0.00041684,35]
[394326122,1763454369222,-180.70034894,0.00016222,2]
[394326123,1763454369274,-9638.60930212,0.00016222,2]
[394326124,1763454369454,-10000.01,0.00016222,2]
[394326125,1763454369602,-10000.01,0.00016222,2]
[394326126,1763454369778,-10000.01,0.00016222,2]
[394326127,1763454369917,-10000.01,0.00016222,2]
[394326128,1763454370098,-10000.01,0.00016222,2]
[394326129,1763454370226,-10000.01,0.00016222,2]
[394326130,1763454370365,-10000.01,0.00016222,2]
[394326131,1763454370504,-10000.01,0.00016222,2]
[394326132,1763454372099,-10000.01,0.00016222,2]
[394326133,1763454378281,-151.0,0.00016219,2]
[394326134,1763454378315,-151.0,0.00016219,2]
[394326135,1763454378706,250.0,0.00015706,2]
[394326137,1763454379195,302.0,0.00041684,90]
[394326139,1763454382527,7410.063731,0.00016141,2]
[394326141,1763454397867,29000.0,0.00041684,30]
[394326145,1763454409613,1196.90251672,0.00016147,2]
[394326146,1763454413006,7398.36906577,0.000162,5]
[394326148,1763454420803,539.04375228,0.000153,2]
[394326149,1763454420830,554.88408213,0.000153,2]
[394326150,1763454421800,300.0,0.00016221,2]
[394326151,1763454421951,550.0,0.00016221,2]
[394326152,1763454424276,3023.39390417,0.00015,2]
[394326153,1763454425415,302.0,0.00041684,90]
[394326154,1763454426461,166.66,0.00014903,2]
[394326155,1763454426673,166.66,0.00015216,2]
[394326156,1763454426883,166.66,0.0001553,2]
[394326157,1763454427085,166.66,0.00015844,2]
[394326158,1763454427289,166.66,0.00016157,2]
[394326161,1763454434737,500.0,0.00016221,2]
[394326162,1763454434868,500.0,0.00016221,2]
[394326163,1763454434969,500.0,0.00016221,2]
[394326164,1763454435015,500.0,0.00016221,2]
[394326165,1763454435060,500.0,0.00016221,2]
[394326166,1763454435122,500.0,0.00016221,2]
[394326167,1763454435176,272.12583906,0.00016221,2]
[394326168,1763454435225,500.0,0.00016221,2]
[394326169,1763454435282,500.0,0.00016221,2]
[394326170,1763454435331,466.30617464,0.00016221,2]
[394326171,1763454435378,33.69382536,0.00016221,2]
[394326172,1763454435441,500.0,0.00016221,2]
[394326173,1763454435491,500.0,0.00016221,2]
[394326174,1763454435549,500.0,0.00016221,2]
[394326175,1763454435595,500.0,0.00016221,2]
[394326176,1763454435640,500.0,0.00016221,2]
[394326177,1763454435695,500.0,0.00016221,2]
[394326178,1763454435740,500.0,0.00016221,2]
[394326179,1763454435785,500.0,0.00016221,2]
[394326183,1763454444396,500.0,0.00016221,2]
[394326184,1763454444451,390.76136485,0.00016221,2]
[394326185,1763454444533,500.0,0.00016221,2]
[394326186,1763454446189,200.0,0.000164,5]
[394326187,1763454448274,500.0,0.000165,6]
[394326188,1763454455739,223.779804,0.00016141,2]
[394326190,1763454466364,1200.0,0.00016221,2]
[394326191,1763454474881,400.0,0.000164,5]
[394326192,1763454476975,800.0,0.000165,6]
[394326195,1763454482017,300.0,0.00016221,2]
[394326198,1763454492186,302.0,0.00041684,90]
[394326199,1763454500494,2512.0,0.00015992,2]
[394326200,1763454509922,339.77500579,0.00016221,2]
[394326201,1763454509955,210.19795997,0.00016221,2]
[394326202,1763454510769,696.18223033,0.00016122,2]
[394326203,1763454511502,2512.0,0.00016051,2]
[394326204,1763454516555,2512.0,0.00016073,2]
[394326205,1763454525243,166.49167834,0.00016133,2]
[394326206,1763454525335,3903.13813136,0.00016122,2]
[394326207,1763454525362,10000.01,0.00016122,2]
[394326208,1763454525389,10000.01,0.00016122,2]
[394326209,1763454525415,10000.01,0.00016122,2]
[394326210,1763454525442,10000.01,0.00016122,2]
[394326211,1763454525468,10000.01,0.00016122,2]
[394326212,1763454525493,10000.01,0.00016122,2]
[394326213,1763454525519,10000.01,0.00016122,2]
[394326214,1763454525545,10000.01,0.00016122,2]
[394326215,1763454525570,4486.78816864,0.00016122,2]
[394326216,1763454527743,500.0,0.00016221,2]
[394326217,1763454549912,1166.8000513,0.00016122,2]
[394326218,1763454557865,302.0,0.00041684,90]
[394326228,1763454578043,162.19357698,0.00016124,2]
[394326229,1763454591092,50000.0,0.00041684,31]
[394326230,1763454595671,50000.0,0.00041684,32]
[394326231,1763454601751,300.0,0.00016221,2]
[394326232,1763454601783,1200.0,0.00016221,2]
[394326233,1763454601815,300.0,0.00016221,2]
[394326234,1763454601919,550.0,0.00016221,2]
[394326235,1763454602028,300.0,0.00016221,2]
[394326236,1763454603060,198.87,0.00016213,2]
[394326237,1763454618501,563.81,0.00015613,2]
[394326238,1763454619345,302.0,0.00041684,90]
[394326253,1763454631898,-39052.11694391,0.00016222,2]
[394326258,1763454631964,-4041.16407892,0.00016222,2]
[394326259,1763454632039,-2325.53578509,0.00016222,2]
[394326260,1763454632051,-7413.19390163,0.00016222,2]
[394326261,1763454632162,-4547.45,0.00016222,2]
[394326262,1763454632174,-559.2495126,0.00016222,2]
[394326431,1763454637991,-8460.0,0.00016222,2]
[394326432,1763454638005,-126818.06779307,0.00016222,2]
[394326433,1763454638027,-589.4431746,0.00016222,2]
[394326434,1763454638080,-492.22154549,0.00016222,2]
[394326435,1763454638091,-3451.08199239,0.00016222,2]
[394326645,1763454640243,-326.924991,0.00016222,2]
[394326647,1763454640254,-1365.355,0.00016222,2]
[394326662,1763454640386,-12.61602915,0.00016222,2]
[394326698,1763454643180,-10493.71745767,0.00016222,2]
[394326699,1763454643243,-702.02049304,0.00016222,2]
[394326700,1763454643256,-87766.6456995,0.00016222,2]
[394326710,1763454646053,-38.94615477,0.00016222,2]
[394326711,1763454646067,-386.3835,0.00016222,2]
[394326712,1763454646077,-500.0,0.00016222,2]
[394326713,1763454646087,-195.0,0.00016223,2]
[394326714,1763454646097,-132.03181844,0.00016224,2]
[394326715,1763454646481,-2379.96818156,0.00016224,2]
[394326716,1763454646491,-195.0,0.00016247,2]
[394326717,1763454646506,-1708.83942,0.0001626,2]
[394326718,1763454646516,-300.0,0.00016272,2]
[394326719,1763454646525,-250.0,0.00016272,2]
[394326720,1763454646535,-2512.0,0.00016286,2]
[394326721,1763454646546,-1011.0,0.000163,2]
[394326722,1763454646556,-408.31362115,0.00016308,2]
[394326723,1763454646567,-250.0,0.00016308,2]
[394326724,1763454646578,-182.375033,0.00016322,2]
[394326725,1763454646588,-151.0,0.00016322,2]
[394326726,1763454646598,-151.0,0.00016322,2]
[394326727,1763454646608,-151.0,0.00016322,2]
[394326728,1763454646618,-151.0,0.00016322,2]
[394326729,1763454646628,-151.0,0.00016322,2]
[394326730,1763454646638,-151.0,0.00016322,2]
[394326731,1763454646648,-151.0,0.00016322,2]
[394326732,1763454646658,-293.55952258,0.00016322,2]
[394326733,1763454646668,-200.0,0.0001634,2]
[394326734,1763454646677,-200.05200551,0.0001634,2]
[394326735,1763454646686,-6510.01865254,0.0001634,2]
[394326736,1763454646696,-3495.4136039,0.00016378,2]
[394326737,1763454646705,-2649.0,0.00016398,2]
[394326738,1763454646715,-352.40662247,0.000164,2]
[394326765,1763454654818,271.54820308,0.00016221,2]
[394326766,1763454654845,228.45179692,0.00016221,2]
[394326767,1763454660765,500.0,0.00016221,2]
[394326768,1763454675098,9271.55820308,0.00016122,2]
[394326769,1763454675123,10000.01,0.00016122,2]
[394326770,1763454675146,10000.01,0.00016122,2]
[394326771,1763454675169,10000.01,0.00016122,2]
[394326772,1763454675191,10000.01,0.00016122,2]
[394326773,1763454675397,10000.01,0.00016122,2]
[394326774,1763454675421,10000.01,0.00016122,2]
[394326775,1763454675444,10000.01,0.00016122,2]
[394326776,1763454675467,9118.37809692,0.00016122,2]
[394326777,1763454676491,500.0,0.00016221,2]
[394326778,1763454681286,431.64396386,0.00041684,90]
[394326779,1763454685745,381.63190308,0.00016221,2]
[394326780,1763454685768,118.36809692,0.00016221,2]
[394326781,1763454691277,-941.59337753,0.000164,2]
[394326782,1763454691306,-1000.0,0.000164,2]
[394326783,1763454691341,-182.375033,0.000164,2]
[394326784,1763454691370,-195.0,0.00016401,2]
[394326785,1763454691399,-300.0,0.00016401,2]
[394326786,1763454691427,-250.0,0.00016401,2]
[394326787,1763454691582,-3489.99134753,0.00016402,2]
[394326788,1763454691747,-3020.02730494,0.00016402,2]
[394326789,1763454691776,-150.99,0.00016421,2]
[394326790,1763454691975,-0.02,0.00016421,2]
[394326791,1763454692199,-0.04,0.00016421,2]
[394326792,1763454692238,-0.08,0.00016421,2]
[394326793,1763454692338,-0.16,0.00016421,2]
[394326794,1763454692621,-0.32,0.00016421,2]
[394326795,1763454692686,-0.64,0.00016421,2]
[394326796,1763454692736,-1.28,0.00016421,2]
[394326797,1763454694401,-2.56,0.00016421,2]
[394326798,1763454694481,-5.12,0.00016421,2]
[394326799,1763454694655,-10.24,0.00016421,2]
[394326800,1763454694740,-20.48,0.00016421,2]
[394326801,1763454694796,-40.96,0.00016421,2]
[394326802,1763454694961,-81.92,0.00016421,2]
[394326803,1763454695109,-163.84,0.00016421,2]
[394326804,1763454695220,-327.68,0.00016421,2]
[394326805,1763454695544,-655.36,0.00016421,2]
[394326806,1763454696496,2000.0,0.00015714,2]
[394326807,1763454697300,-1310.72,0.00016421,2]
[394326808,1763454697456,-2621.44,0.00016421,2]
[394326809,1763454697645,-4757.13,0.00016421,2]
[394326810,1763454697890,-3010.58,0.00016421,2]
[394326811,1763454698041,-3978.85,0.00016421,2]
[394326812,1763454698071,-662.26848,0.00016421,2]
[394326813,1763454698256,-717.77304,0.00016421,2]
[394326814,1763454698285,-500.0,0.00016422,2]
[394326815,1763454698313,-1050.7514579,0.00016431,2]
[394326816,1763454698341,-500.0,0.00016437,2]
[394326817,1763454698370,-500.0,0.00016437,2]
[394326818,1763454698401,-318.05865209,0.00016437,2]
[394326819,1763454698430,-500.0,0.00016437,2]
[394326820,1763454698459,-500.0,0.00016437,2]
[394326821,1763454698489,-304.85688909,0.00016437,2]
[394326822,1763454698633,-217.12992184,0.00016437,2]
[394326823,1763454698664,-527.87918583,0.00016437,2]
[394326824,1763454698695,-500.0,0.00016437,2]
[394326825,1763454698725,-500.0,0.00016437,2]
[394326826,1763454698753,-500.0,0.00016437,2]
[394326827,1763454698926,-500.0,0.00016438,2]
[394326828,1763454698960,-500.0,0.00016438,2]
[394326829,1763454698989,-500.0,0.00016438,2]
[394326830,1763454699019,-500.0,0.00016438,2]
[394326831,1763454699053,-426.38435367,0.00016438,2]
[394326832,1763454699086,-157.22307732,0.00016438,2]
[394326833,1763454699244,-342.77692268,0.00016438,2]
[394326834,1763454699275,-500.0,0.00016438,2]
[394326835,1763454699306,-500.0,0.00016438,2]
[394326836,1763454699337,-349.30205615,0.00016438,2]
[394326837,1763454699367,-553.35204234,0.00016438,2]
[394326838,1763454699548,-4490.86204234,0.00016438,2]
[394326839,1763454699580,-1018.28591532,0.00016438,2]
[394326840,1763454699609,-2649.0,0.0001644,2]
[394326841,1763454699640,-216.6073282,0.00016452,2]
[394326842,1763454700354,-3489.99134753,0.00016464,2]
[394326843,1763454700490,-3020.02730494,0.00016464,2]
[394326844,1763454700519,-166.66,0.00016471,2]
[394326845,1763454700875,-2170.4477426,0.000165,2]
[394326846,1763454700906,-1567.73655233,0.000165,2]
[394326847,1763454700928,-6864.53689534,0.000165,2]
[394326848,1763454701151,-1000.0,0.000165,2]
[394326849,1763454701178,-2391.9783,0.00016502,2]
[394326850,1763454701207,-1000.0,0.00016522,2]
[394326851,1763454701235,-492.586,0.00016522,2]
[394326852,1763454701306,-230.8814,0.00016523,2]
[394326853,1763454703374,-2500.0,0.00016122,2]
[394326854,1763454703406,-2281.1186,0.00016523,2]
[394326855,1763454703457,-437.7728,0.00016527,2]
[394326856,1763454703504,-3927.76414753,0.00016527,2]
[394326857,1763454703527,-2144.48170494,0.00016527,2]
[394326858,1763454703804,-2512.0,0.00016553,2]
[394326859,1763454703859,-3489.99134753,0.00016589,2]
[394326860,1763454703886,-1486.01865247,0.00016589,2]
[394326861,1763454703900,-1534.00865247,0.00016589,2]
[394326862,1763454703910,-305.999487,0.00016599,2]
[394326863,1763454703919,-700.0,0.000166,6]
[394326864,1763454703929,-1200.0,0.000166,6]
[394326865,1763454703938,-2770.010513,0.00016602,2]
[394326866,1763454704037,-642.989487,0.00016602,2]
[394326867,1763454704073,-1000.0,0.00016603,2]
[394326868,1763454704103,-1000.0,0.00016603,2]
[394326869,1763454704133,-1000.0,0.00016606,2]
[394326870,1763454704162,-1000.0,0.0001662,2]
[394326871,1763454704256,-1000.0,0.0001662,2]
[394326872,1763454704285,-1000.0,0.0001662,2]
[394326873,1763454704316,-1000.0,0.0001662,2]
[394326874,1763454704347,-995.372,0.0001662,2]
[394326875,1763454704547,500.0,0.00016221,2]
[394326876,1763454712984,500.0,0.00016221,2]
[394326877,1763454716186,1009.266,0.00016182,2]
[394326878,1763454716213,1505.734,0.00016182,2]
[394326879,1763454721119,2515.0,0.00016478,2]
[394326880,1763454725464,313.8336406,0.00016221,2]
[394326881,1763454728818,500.0,0.00016221,2]
[394326882,1763454731695,843.4,0.00013699,2]
[394326883,1763454733251,151.0,0.00016411,2]
[394326884,1763454733942,151.0,0.00016411,2]
[394326885,1763454734611,151.0,0.00016411,2]
[394326886,1763454735536,151.0,0.00016411,2]
[394326887,1763454737627,151.0,0.00016411,2]
[394326888,1763454738264,286.90500124,0.00016411,2]
[394326889,1763454741907,302.0,0.00041686,90]
[394326890,1763454745478,547.57431765,0.00016221,2]
[394326891,1763454745872,1424.03285,0.0001662,2]
[394326892,1763454770681,1308.53019051,0.0001662,2]
[394326893,1763454770703,1028.19845949,0.0001662,2]
[394326894,1763454779815,500.0,0.00016122,2]
[394326895,1763454785636,8012.9951,0.00016122,2]
[394326896,1763454786002,151.0,0.00041686,90]
[394326897,1763454802028,458.81644051,0.00015729,2]
[394326898,1763454802058,1141.18355949,0.00015729,2]
[394326899,1763454810278,1000.0,0.00016122,2]
[394326900,1763454817670,7858.82644051,0.00016122,2]
[394326901,1763454817697,10000.01,0.00016122,2]
[394326902,1763454817720,10000.01,0.00016122,2]
[394326903,1763454817744,10000.01,0.00016122,2]
[394326904,1763454817767,10000.01,0.00016122,2]
[394326905,1763454817791,10000.01,0.00016122,2]